bitfinex-derivatives/quotes_BTCF0:USTF0_20240829
["timestamp","ask_amount","ask_price","bid_price","bid_amount"]
[1724969415516,0.01041314,58951.0,58944.0,0.3608]
[1724969415713,0.3608,58954.0,58944.0,0.3608]
[1724969415714,0.3608,58954.0,58952.0,0.084793]
[1724969415917,0.37121314,58954.0,58944.0,0.3608]
[1724969416325,0.3608,58954.0,58952.0,0.084792]
[1724969416620,0.0816189,58962.0,58961.0,0.08478]
[1724969416824,0.37121314,58964.0,58957.0,0.3608]
[1724969417024,0.0816189,58969.0,58967.0,0.084771]
[1724969417229,0.01041314,58969.0,58957.0,0.3608]
[1724969417527,0.01041314,58958.0,58956.0,0.00025441]
[1724969417726,0.3608,58957.0,58956.0,0.00025441]
[1724969417925,0.01041314,58958.0,58956.0,0.36105441]
[1724969418133,0.01041314,58958.0,58956.0,0.44584141]
[1724969418329,0.01041314,58957.0,58956.0,0.00025441]
[1724969419220,0.3608,58958.0,58956.0,0.59388041]
[1724969419422,0.08215083,58960.0,58958.0,0.084784]
[1724969419719,0.08215083,58960.0,58959.0,0.50884]
[1724969419925,0.08215083,58961.0,58960.0,0.084782]
[1724969420420,0.09857245,58965.0,58964.0,0.084776]
[1724969420622,0.03571591,58965.0,58964.0,0.084776]
[1724969420925,0.03571591,58965.0,58964.0,0.593576]
[1724969421122,0.09857245,58966.0,58964.0,0.593576]
[1724969421426,0.47674884,58976.0,58965.0,0.86956]
[1724969421721,0.01041314,58967.0,58965.0,0.084774]
[1724969421923,0.15982492,58966.0,58965.0,0.084774]
[1724969422319,0.03596327,58966.0,58965.0,0.084774]
[1724969422515,0.08237862,58966.0,58965.0,0.593534]
[1724969422720,0.3608,58976.0,58965.0,0.593534]
[1724969422721,0.08237862,58967.0,58965.0,0.593534]
[1724969422927,0.08237862,58968.0,58967.0,0.084771]
[1724969423426,0.09885435,58973.0,58971.0,0.084766]
[1724969423633,0.03584587,58972.0,58971.0,0.084766]
[1724969423834,0.09885435,58974.0,58972.0,0.084764]
[1724969424328,0.03585832,58973.0,58972.0,0.084764]
[1724969424524,0.03585832,58973.0,58963.0,0.3608]
[1724969424735,0.08239818,58971.0,58970.0,0.084767]
[1724969424920,0.08239818,58971.0,58970.0,0.445567]
[1724969425125,0.08239818,58971.0,58970.0,0.954287]
[1724969425427,0.03525892,58971.0,58970.0,0.954287]
[1724969425627,0.09885435,58974.0,58971.0,0.084766]
[1724969425830,0.09885435,58974.0,58970.0,0.25903414]
[1724969426325,0.03524575,58973.0,58970.0,0.25903414]
[1724969426518,0.09885435,58974.0,58970.0,0.25903414]
[1724969426519,0.03524575,58972.0,58971.0,0.084766]
[1724969427326,0.03524575,58972.0,58971.0,0.593486]
[1724969427526,0.11594884,58987.0,58970.0,0.25903414]
[1724969427527,6.06e-06,58980.0,58973.0,0.50872]
[1724969427829,0.03453126,58985.0,58984.0,0.084747]
[1724969428024,0.09885435,58989.0,58988.0,0.084741]
[1724969428025,0.06977581,58989.0,58988.0,0.084741]
[1724969428224,0.09885435,58990.0,58989.0,0.08474]
[1724969428429,0.09885435,58990.0,58983.0,0.21208]
[1724969428430,0.0018,58993.0,58984.0,0.3608]
[1724969428624,0.06977581,58991.0,58989.0,0.3608]
[1724969428822,0.3608,58998.0,58996.0,0.08473]
[1724969429024,0.3608,58998.0,58989.0,0.3608]
[1724969429025,0.09894716,59001.0,58991.0,0.00025441]
[1724969429232,0.09894716,59007.0,59006.0,0.084715]
[1724969429435,0.3608,59010.0,59009.0,0.084711]
[1724969429934,0.3608,59010.0,59009.0,0.593111]
[1724969430429,0.09894716,59016.0,59009.0,1.7184]
[1724969430639,0.09894716,59021.0,59020.0,0.084695]
[1724969430837,0.09894716,59021.0,59020.0,0.657535]
[1724969430838,0.03435207,59021.0,59020.0,0.657535]
[1724969431024,0.03435207,59021.0,59020.0,0.6066632]
[1724969431338,0.09868576,59024.0,59021.0,0.084693]
[1724969431640,0.16846157,59032.0,59026.0,0.084686]
[1724969431935,0.03330436,59031.0,59023.0,0.3608]
[1724969432245,0.06977581,59022.0,59015.0,0.00025419]
[1724969432433,0.06977581,59019.0,59015.0,0.00025419]
[1724969432630,0.03330436,59018.0,59015.0,0.00025419]
[1724969432938,0.09852646,59024.0,59017.0,0.3608]
[1724969433133,0.09852646,59032.0,59023.0,0.7908]
[1724969433332,0.09852646,59036.0,59028.0,0.3608]
[1724969433537,0.03306507,59035.0,59028.0,0.3608]
[1724969433739,0.06977581,59033.0,59028.0,0.445483]
[1724969434044,0.06977581,59033.0,59028.0,0.3608]
[1724969434248,0.36268001,59038.0,59032.0,0.43]
[1724969434535,0.09852646,59041.0,59035.0,0.084673]
[1724969434738,0.06977581,59039.0,59037.0,0.084671]
[1724969434927,0.0655151,59039.0,59037.0,0.084671]
[1724969435135,0.06551838,59040.0,59035.0,0.3608]
[1724969435341,0.06977581,59040.0,59039.0,0.084668]
[1724969435539,0.06977581,59040.0,59035.0,0.7908]
[1724969435540,0.25040513,59045.0,59036.0,0.50816]
[1724969435743,0.18488675,59045.0,59043.0,0.084662]
[1724969435934,0.18488675,59045.0,59040.0,0.3608]
[1724969435935,0.06977581,59041.0,59040.0,0.3608]
[1724969436127,0.43057581,59041.0,59038.0,0.00025419]
[1724969436326,0.06977581,59039.0,59038.0,0.00025419]
[1724969436534,0.06977581,59035.0,59031.0,0.12749822]
[1724969436728,0.43057581,59035.0,59031.0,0.12749822]
[1724969437139,0.3608,59035.0,59031.0,0.12749822]
[1724969437333,0.06977581,59032.0,59020.0,0.43]
[1724969437529,0.06977581,59027.0,59020.0,0.43]
[1724969438042,0.06977581,59027.0,59022.0,0.084692]
[1724969438741,0.06977581,59023.0,59020.0,0.43]
[1724969438940,0.06977581,59021.0,59018.0,0.36105419]
[1724969439237,0.06977581,59019.0,59018.0,0.00025419]
[1724969439438,0.06977581,59019.0,59000.0,0.084724]
[1724969439642,0.06977581,59005.0,59001.0,0.084722]
[1724969439843,0.3608,59010.0,59001.0,0.084722]
[1724969439844,0.06977581,59007.0,59001.0,0.084722]
[1724969440048,0.06977581,59005.0,59001.0,0.084722]
[1724969440237,0.43057581,59005.0,59001.0,0.084722]
[1724969440631,0.43057581,59005.0,58997.0,0.00025419]
[1724969440632,0.43057581,59005.0,59002.0,0.084721]
[1724969440842,0.3608,59005.0,59004.0,0.084718]
[1724969441043,0.3608,59005.0,59004.0,0.593158]
[1724969441341,0.00025419,59009.0,59008.0,0.084713]
[1724969441547,0.3608,59019.0,59018.0,0.084698]
[1724969441754,0.43057581,59019.0,59018.0,0.084698]
[1724969442041,0.3608,59019.0,59018.0,0.593018]
[1724969442455,0.3608,59019.0,59018.0,0.50832]
[1724969442837,0.3608,59019.0,59018.0,0.084698]
[1724969443042,0.00025345,59024.0,59023.0,0.084691]
[1724969443647,0.00025345,59024.0,59023.0,0.445491]
[1724969444143,0.00025345,59024.0,59023.0,0.953771]
[1724969444448,0.00025345,59024.0,59023.0,1.553771]
[1724969444849,0.00025345,59024.0,59023.0,0.953771]
[1724969445334,0.00025345,59024.0,59023.0,0.445491]
[1724969445539,0.00025345,59024.0,59016.0,0.79168]
[1724969445540,0.60400346,59024.0,59017.0,0.084699]
[1724969445740,0.53422765,59024.0,59017.0,0.084699]
[1724969445939,0.06977581,59018.0,59017.0,0.084699]
[1724969446446,0.00025345,59024.0,59022.0,0.084692]
[1724969446643,0.06977581,59022.0,59016.0,0.084701]
[1724969446840,0.3608,59019.0,59017.0,0.084699]
[1724969447050,0.3608,59019.0,59013.0,0.00025419]
[1724969447051,0.06977581,59018.0,59014.0,0.084704]
[1724969447355,0.06977581,59018.0,59013.0,0.00025419]
[1724969447356,0.27067697,59019.0,59015.0,0.084702]
[1724969447546,0.27067697,59019.0,59017.0,0.084699]
[1724969447741,0.00025345,59024.0,59019.0,0.084696]
[1724969447742,0.36105345,59024.0,59019.0,0.084696]
[1724969447946,0.89502765,59024.0,59019.0,0.084696]
[1724969448143,0.36105345,59024.0,59017.0,0.3608]
[1724969448651,0.36105345,59024.0,59022.0,0.084692]
[1724969449156,0.36105345,59024.0,59023.0,0.084691]
[1724969449350,0.00025345,59024.0,59022.0,0.3608]
[1724969449551,0.53422765,59024.0,59022.0,0.3608]
[1724969449749,0.3608,59023.0,59007.0,0.21188]
[1724969449954,0.53397346,59024.0,58995.0,0.00176]
[1724969449955,0.3608,59008.0,58995.0,0.00176]
[1724969450141,0.3608,59008.0,58992.0,0.3608]
[1724969450142,0.3608,59000.0,58992.0,0.3608]
[1724969450644,0.89452001,59000.0,58992.0,0.3608]
[1724969451454,0.3608,59000.0,58992.0,0.3608]
[1724969451651,0.3608,59000.0,58994.0,0.084731]
[1724969451953,0.3608,59000.0,58992.0,0.3608]
[1724969452156,0.00025419,59002.0,58997.0,0.3608]
[1724969452353,0.00025419,59002.0,58999.0,0.084725]
[1724969453563,0.00025419,59002.0,59000.0,0.084724]
[1724969453947,0.00025419,59002.0,59001.0,0.93848]
[1724969454357,0.00025419,59002.0,59001.0,1.89928]
[1724969454755,0.42622791,59025.0,59001.0,1.89928]
[1724969454960,0.89452001,59025.0,59023.0,0.084691]
[1724969455457,0.89452001,59025.0,59020.0,0.21184]
[1724969455458,0.3608,59025.0,59020.0,0.21184]
[1724969456459,0.3608,59025.0,59021.0,0.084694]
[1724969457356,0.42622791,59025.0,59022.0,0.237]
[1724969457551,0.3608,59025.0,59022.0,0.18615485]
[1724969457748,0.3608,59025.0,59020.0,0.21184]
[1724969457749,0.9773462,59025.0,59020.0,0.21184]
[1724969457959,0.08282619,59023.0,59020.0,0.21184]
[1724969458157,0.08282619,59023.0,59017.0,0.00025419]
[1724969458158,0.50828,59022.0,59017.0,0.00025419]
[1724969458459,0.3608,59018.0,59011.0,0.23788]
[1724969458761,0.3608,59012.0,59011.0,0.237]
[1724969458966,0.3608,59012.0,58999.0,0.084725]
[1724969459256,0.3608,59000.0,58994.0,0.237]
[1724969459459,0.04970537,58998.0,58994.0,0.237]
[1724969459855,0.04970537,58997.0,58994.0,0.237]
[1724969460168,0.3608,58995.0,58991.0,0.00025419]
[1724969460358,0.04969272,58993.0,58992.0,0.084736]
[1724969460554,7.2e-07,58995.0,58994.0,0.169466]
[1724969460759,1.9e-07,58999.0,58998.0,0.084727]
[1724969461051,1.9e-07,58999.0,58991.0,0.36105419]
[1724969461052,0.53372001,58999.0,58992.0,0.084735]
[1724969461252,0.53372001,58999.0,58993.0,0.084734]
[1724969461451,0.3608,58996.0,58991.0,0.00025419]
[1724969461655,0.42707817,58996.0,58991.0,0.00025419]
[1724969461865,0.89452001,58996.0,58991.0,0.00025419]
[1724969462061,0.06627817,58994.0,58991.0,0.00025419]
[1724969462260,0.06627817,58994.0,58985.0,0.3608]
[1724969462466,0.42707817,58990.0,58985.0,0.3608]
[1724969462662,0.3608,58990.0,58985.0,0.3608]
[1724969462962,0.96079818,58990.0,58986.0,0.084743]
[1724969463164,0.89452001,58990.0,58986.0,0.084743]
[1724969463371,0.89452001,58990.0,58951.0,0.08353548]
[1724969463372,0.7908,58987.0,58966.0,0.02460202]
[1724969463554,0.3608,58967.0,58960.0,0.04995643]
[1724969463758,0.43,58987.0,58955.0,0.06660965]
[1724969463759,0.3608,58962.0,58959.0,0.04995643]
[1724969464159,0.3608,58973.0,58959.0,0.04995643]
[1724969464160,0.3608,58968.0,58959.0,0.04995643]
[1724969464360,0.3608,58979.0,58972.0,0.084764]
[1724969464670,0.3608,58979.0,58974.0,0.08476]
[1724969464867,0.89426582,58979.0,58974.0,0.08476]
[1724969465163,0.89426582,58979.0,58976.0,0.084758]
[1724969465164,0.09852646,58978.0,58976.0,0.084758]
[1724969466267,0.3608,58979.0,58976.0,0.084758]
[1724969466472,0.3608,58979.0,58974.0,0.23248]
[1724969466473,0.3608,58979.0,58978.0,0.43]
[1724969466661,0.3608,58992.0,58978.0,0.7908]
[1724969467061,0.89426582,58992.0,58984.0,0.084746]
[1724969467262,0.3608,58987.0,58978.0,0.3608]
[1724969467557,0.3608,58980.0,58977.0,0.084756]
[1724969467764,0.89426582,58987.0,58979.0,0.084754]
[1724969467964,0.89426582,58987.0,58980.0,0.084752]
[1724969468364,0.3608,58981.0,58977.0,0.00025441]
[1724969468872,0.89426582,58981.0,58977.0,0.00025441]
[1724969470169,0.53346582,58981.0,58979.0,0.084753]
[1724969470377,0.53346582,58981.0,58977.0,0.00025441]
[1724969470573,0.89426582,58981.0,58977.0,0.00025441]
[1724969471479,0.3608,58986.0,58984.0,0.084746]
[1724969471675,0.06641575,58988.0,58987.0,0.084743]
[1724969472376,0.06641575,58988.0,58987.0,0.593343]
[1724969472763,0.13232268,59009.0,58988.0,0.50856]
[1724969473074,0.13232268,59009.0,59008.0,0.084713]
[1724969473671,0.13232268,59009.0,59008.0,0.953913]
[1724969474166,0.02657168,59009.0,59008.0,1.553913]
[1724969474368,7.4e-07,59014.0,59013.0,0.084705]
[1724969474567,7.4e-07,59014.0,59013.0,0.672785]
[1724969474765,7.4e-07,59014.0,59013.0,1.181145]
[1724969475274,0.54360929,59034.0,59025.0,0.084688]
[1724969475473,0.54544929,59034.0,59025.0,0.445488]
[1724969475674,0.54544929,59034.0,59025.0,0.592928]
[1724969476078,0.36264,59034.0,59026.0,0.084686]
[1724969476375,0.89426582,59034.0,59030.0,0.084681]
[1724969476571,0.0086,59057.0,59033.0,0.7908]
[1724969476873,0.02744633,59056.0,59047.0,0.3608]
[1724969477075,0.02744633,59056.0,59048.0,0.22724]
[1724969477272,0.53346582,59056.0,59049.0,0.22724]
[1724969477671,0.53346582,59056.0,59049.0,0.17642267]
[1724969478277,0.53346582,59056.0,59045.0,0.515538]
[1724969478278,0.3608,59050.0,59045.0,0.65812]
[1724969478480,0.89614583,59056.0,59045.0,0.65724]
[1724969478682,0.53346582,59056.0,59047.0,0.3608]
[1724969479177,0.89426582,59056.0,59047.0,0.3608]
[1724969479878,0.3608,59049.0,59039.0,0.00025419]
[1724969480080,0.3608,59040.0,59039.0,0.00025419]
[1724969480472,0.89426582,59040.0,59039.0,0.00025419]
[1724969480669,2.00238582,59040.0,59039.0,0.00025419]
[1724969480881,1.46892,59040.0,59020.0,0.43]
[1724969481083,0.3608,59028.0,59020.0,0.43]
[1724969481483,0.89426582,59028.0,59020.0,0.43]
[1724969481982,0.3608,59021.0,59018.0,0.00113419]
[1724969482284,0.3608,59021.0,59009.0,0.08471]
[1724969482478,0.3608,59014.0,59005.0,0.3608]
[1724969482887,0.89426582,59014.0,59005.0,0.445516]
[1724969483077,0.89426582,59014.0,59005.0,0.36193419]
[1724969483279,0.89426582,59014.0,59005.0,0.36105419]
[1724969483984,0.3608,59006.0,59005.0,0.00025419]
[1724969484487,0.89426582,59006.0,59005.0,0.00025419]
[1724969484884,0.53346582,59006.0,59005.0,0.36105419]
[1724969485078,0.53346582,59006.0,59005.0,0.00025419]
[1724969486587,0.3608,59014.0,59012.0,0.084706]
[1724969486890,0.3608,59014.0,59012.0,0.514706]
[1724969487988,0.00025419,59016.0,59012.0,0.514706]
[1724969488179,0.53372001,59016.0,59012.0,0.514706]
[1724969488488,0.00025419,59016.0,59012.0,0.43]
[1724969489181,0.00025419,59016.0,59014.0,0.084703]
[1724969489381,0.3608,59038.0,59025.0,0.084687]
[1724969489583,0.3608,59033.0,59025.0,0.084687]
[1724969489787,0.3608,59035.0,59025.0,0.3608]
[1724969489982,0.3608,59035.0,59026.0,0.3608]
[1724969490182,0.89426582,59035.0,59022.0,0.43]
[1724969490379,0.02770722,59034.0,59023.0,0.00025419]
[1724969490583,0.00025346,59034.0,59023.0,0.00025419]
[1724969490793,0.53371928,59034.0,59026.0,0.3608]
[1724969491390,0.53371928,59034.0,59026.0,0.445486]
[1724969491697,0.53371928,59034.0,59023.0,0.00025419]
[1724969491991,0.53371928,59034.0,59026.0,0.3608]
[1724969492191,0.53371928,59034.0,59031.0,0.43]
[1724969492395,0.00025346,59034.0,59032.0,0.663758]
[1724969492594,0.00025346,59034.0,59032.0,1.171958]
[1724969492796,0.3328,59060.0,59044.0,0.084661]
[1724969492797,0.3608,59055.0,59044.0,0.084661]
[1724969493103,0.3608,59055.0,59044.0,0.445461]
[1724969493284,0.3608,59055.0,59044.0,0.44546]
[1724969493285,0.89426582,59055.0,59044.0,0.44546]
[1724969493591,0.53346582,59055.0,59051.0,0.43]
[1724969494398,0.3242,59073.0,59051.0,0.43]
[1724969494399,0.3608,59068.0,59054.0,0.3608]
[1724969494587,0.89426582,59073.0,59067.0,0.43]
[1724969494901,0.89426582,59073.0,59071.0,0.084622]
[1724969495114,0.3608,59080.0,59079.0,0.084611]
[1724969495288,0.3608,59080.0,59079.0,0.64384]
[1724969495487,0.3608,59087.0,59079.0,0.64384]
[1724969495694,0.89426582,59087.0,59079.0,0.64384]
[1724969495902,0.53346582,59087.0,59083.0,0.3608]
[1724969497801,0.3608,59084.0,59081.0,0.21384]
[1724969498195,0.53346582,59084.0,59081.0,0.21384]
[1724969499298,0.5078,59083.0,59063.0,0.7908]
[1724969499506,0.3608,59078.0,59063.0,0.7908]
[1724969499801,0.3608,59070.0,59063.0,0.7908]
[1724969500000,0.3608,59082.0,59063.0,0.43]
[1724969500205,0.3608,59070.0,59063.0,0.43]
[1724969500501,0.3608,59070.0,59047.0,0.2094]
[1724969500502,0.3608,59064.0,59047.0,0.2094]
[1724969500699,0.3608,59064.0,59042.0,0.3608]
[1724969500700,0.3608,59049.0,59042.0,0.3608]
[1724969501093,0.68246582,59049.0,59042.0,0.3608]
[1724969501293,0.68246582,59049.0,59029.0,0.43]
[1724969501294,0.3608,59044.0,59032.0,0.3608]
[1724969501494,0.36105397,59044.0,59032.0,0.44573197]
[1724969501694,0.68271979,59044.0,59032.0,0.44573197]
[1724969501903,0.68271979,59044.0,59032.0,0.00025397]
[1724969501904,0.3608,59039.0,59032.0,0.00025397]
[1724969502206,0.3608,59034.0,59032.0,0.00025397]
[1724969502398,0.68246582,59039.0,59032.0,0.00025397]
[1724969503395,0.3608,59034.0,59032.0,0.00025397]
[1724969503595,0.68246582,59039.0,59032.0,0.00025397]
[1724969503996,0.3608,59033.0,59032.0,0.00025397]
[1724969504206,0.68246582,59039.0,59032.0,0.00025397]
[1724969504503,0.00025397,59044.0,59038.0,0.7908]
[1724969504701,0.00025397,59044.0,59033.0,0.084676]
[1724969504702,0.3608,59039.0,59032.0,0.00025397]
[1724969504903,0.3608,59033.0,59012.0,0.3608]
[1724969505098,0.3608,59015.0,59010.0,0.43]
[1724969505299,0.68246582,59015.0,59005.0,0.3608]
[1724969505598,0.68246582,59015.0,59005.0,0.445516]
[1724969505800,0.68246582,59015.0,59005.0,0.3608]
[1724969506699,0.68246582,59015.0,59008.0,0.084712]
[1724969507298,0.00025419,59016.0,59013.0,0.3608]
[1724969507596,0.3608,59033.0,59014.0,0.3608]
[1724969507799,0.3608,59033.0,59028.0,0.3608]
[1724969508002,0.68246582,59033.0,59029.0,0.20944]
[1724969508703,0.68246582,59033.0,59032.0,0.084678]
[1724969509012,0.68246582,59033.0,59029.0,0.20944]
[1724969509411,0.32166582,59033.0,59025.0,0.08494219]
[1724969509605,0.32166582,59033.0,59030.0,0.20944]
[1724969509807,0.32166582,59033.0,59032.0,0.43]
[1724969510202,0.3608,59034.0,59032.0,0.43]
[1724969510412,0.68246582,59034.0,59033.0,0.20944]
[1724969511716,0.00025419,59037.0,59036.0,0.084672]
[1724969511914,0.3608,59048.0,59038.0,0.084669]
[1724969512213,0.3608,59048.0,59039.0,0.084668]
[1724969512399,0.3608,59048.0,59033.0,0.63944]
[1724969512400,0.68246582,59048.0,59035.0,0.3608]
[1724969512708,0.68246582,59048.0,59041.0,0.084665]
[1724969513808,0.68246582,59048.0,59045.0,0.084659]
[1724969514605,0.3608,59048.0,59046.0,0.084658]
[1724969515006,0.68246582,59048.0,59046.0,0.084658]
[1724969516109,0.32166582,59048.0,59046.0,0.084658]
[1724969518214,0.3608,59047.0,59027.0,0.3608]
[1724969518411,0.3608,59037.0,59034.0,0.084675]
[1724969518613,0.3608,59037.0,59030.0,0.289441]
[1724969518908,0.47745163,59037.0,59030.0,0.289441]
[1724969520806,0.47745163,59037.0,59028.0,0.00025419]
[1724969520807,0.3608,59031.0,59028.0,0.00025419]
[1724969521304,0.47745163,59031.0,59028.0,0.00025419]
[1724969521507,0.47745163,59031.0,59014.0,0.3608]
[1724969521803,0.3608,59026.0,59014.0,0.3608]
[1724969522217,0.47745163,59026.0,59017.0,0.084699]
[1724969522520,0.11665163,59026.0,59020.0,0.3608]
[1724969522817,0.00025419,59035.0,59022.0,0.43]
[1724969523006,0.00025419,59035.0,59022.0,0.514692]
[1724969523007,0.3608,59031.0,59022.0,0.514692]
[1724969523210,0.3608,59032.0,59022.0,0.514692]
[1724969523514,0.3608,59032.0,59023.0,0.084691]
[1724969523720,0.47745163,59032.0,59023.0,0.084691]
[1724969523908,0.3608,59026.0,59023.0,0.084691]
[1724969524106,0.3608,59026.0,59016.0,0.00025419]
[1724969524404,0.3608,59018.0,59016.0,0.00025419]
[1724969524809,0.47745163,59018.0,59016.0,0.00025419]
[1724969525317,0.3249151,59018.0,59016.0,0.00025419]
[1724969525618,0.11665163,59018.0,59016.0,0.44575519]
[1724969525809,0.11665163,59018.0,59016.0,0.08495519]
[1724969526113,0.00025419,59023.0,59016.0,0.36105419]
[1724969526316,0.11690582,59023.0,59022.0,0.084692]
[1724969526522,0.11690582,59023.0,59016.0,0.00025419]
[1724969526715,0.3608,59018.0,58997.0,0.3608]
[1724969526917,0.3608,59018.0,58992.0,0.3608]
[1724969526918,0.3608,58998.0,58992.0,0.3608]
[1724969527117,0.3608,58998.0,58982.0,0.3608]
[1724969527118,0.3608,58998.0,58991.0,0.084737]
[1724969527311,0.3608,58992.0,58986.0,0.084743]
[1724969527511,0.3608,58992.0,58982.0,0.39075347]
[1724969527815,0.3608,58992.0,58960.0,0.1676]
[1724969527816,0.3608,58986.0,58969.0,0.3608]
[1724969528019,0.3608,58979.0,58969.0,0.3608]
[1724969528221,0.3608,58972.0,58966.0,0.03137783]
[1724969528408,0.3608,58967.0,58966.0,0.0008722]
[1724969528716,0.47657163,58967.0,58966.0,0.0008722]
[1724969528922,0.46257163,58967.0,58966.0,0.0008722]
[1724969529510,0.11677163,58967.0,58966.0,0.0148722]
[1724969530117,1.58607744,58967.0,58945.0,0.3608]
[1724969530419,0.3608,58962.0,58951.0,0.3608]
[1724969530622,0.3468,58962.0,58951.0,0.3608]
[1724969530814,0.46231744,58962.0,58951.0,0.3608]
[1724969531114,0.3608,58957.0,58951.0,0.3608]
[1724969531305,0.3608,58957.0,58951.0,0.36097086]
[1724969531509,0.3608,58952.0,58929.0,0.3608]
[1724969531712,1.06231744,58957.0,58929.0,0.3608]
[1724969531713,0.3608,58944.0,58935.0,0.084816]
[1724969531912,0.3608,58944.0,58934.0,0.3608]
[1724969531913,0.3608,58944.0,58936.0,0.084815]
[1724969532119,0.44831744,58944.0,58937.0,0.43]
[1724969532319,0.44831744,58944.0,58935.0,0.3608]
[1724969532614,0.44831744,58944.0,58929.0,0.39197822]
[1724969533220,0.44931744,58944.0,58929.0,0.39197822]
[1724969533818,0.4492969,58944.0,58929.0,0.39197822]
[1724969534018,0.4492969,58944.0,58934.0,0.3608]
[1724969534516,0.10351744,58944.0,58943.0,0.3608]
[1724969534715,0.10351744,58944.0,58937.0,0.43]
[1724969534716,0.002,58944.0,58942.0,0.3608]
[1724969535016,0.002,58944.0,58942.0,0.445607]
[1724969535220,0.001,58944.0,58942.0,0.445607]
[1724969535612,0.002,58944.0,58943.0,0.55572]
[1724969535919,0.001,58944.0,58943.0,0.55572]
[1724969536122,0.002,58944.0,58943.0,0.55572]
[1724969537013,0.3608,58961.0,58944.0,0.50896]
[1724969537323,0.46231744,58961.0,58954.0,0.43]
[1724969537620,0.3608,58968.0,58959.0,0.3608]
[1724969537918,0.10151744,58968.0,58965.0,0.3608]
[1724969538106,0.3608,58975.0,58969.0,0.084768]
[1724969538321,0.00025441,58972.0,58969.0,0.084768]
[1724969538817,0.10177185,58972.0,58966.0,0.19496]
[1724969539122,0.001,58968.0,58966.0,0.19496]
[1724969539620,0.10151744,58968.0,58966.0,0.19496]
[1724969540213,0.10251744,58968.0,58966.0,0.19496]
[1724969540808,0.10151744,58968.0,58966.0,0.19496]
[1724969541008,0.10251744,58968.0,58966.0,0.19496]
[1724969541317,0.10351744,58968.0,58966.0,0.279732]
[1724969541711,0.10451744,58968.0,58966.0,0.279732]
[1724969541910,0.003,58968.0,58966.0,0.279732]
[1724969542109,0.00025441,58972.0,58966.0,0.279732]
[1724969542110,0.00025441,58972.0,58971.0,0.084766]
[1724969542310,0.10177185,58972.0,58971.0,0.084766]
[1724969542512,0.10177185,58972.0,58971.0,0.875566]
[1724969543217,0.3608,58988.0,58971.0,1.89952]
[1724969543422,0.3608,58988.0,58977.0,0.3608]
[1724969543423,0.46231744,58988.0,58977.0,0.3608]
[1724969543622,0.46231744,58988.0,58974.0,0.43]
[1724969544016,0.46231744,58988.0,58977.0,0.445557]
[1724969544325,0.46257185,58988.0,58977.0,0.44581141]
[1724969544921,0.3608,58978.0,58966.0,0.3608]
[1724969545225,0.3608,58978.0,58970.0,0.084767]
[1724969545421,0.001,58972.0,58970.0,0.084767]
[1724969545916,0.10151744,58972.0,58970.0,0.084767]
[1724969546314,0.10151744,58972.0,58971.0,0.084766]
[1724969546515,0.10251744,58972.0,58971.0,0.084766]
[1724969546917,0.10251744,58972.0,58966.0,0.445573]
[1724969547110,0.10251744,58972.0,58969.0,0.084768]
[1724969547525,0.10251744,58972.0,58966.0,0.3608]
[1724969547714,0.3608,58970.0,58965.0,0.00025441]
[1724969548024,0.3608,58970.0,58948.0,0.19048]
[1724969548025,0.445567,58970.0,58940.0,0.7908]
[1724969548319,0.45606303,58953.0,58941.0,0.084809]
[1724969548621,0.45606303,58953.0,58937.0,0.21204]
[1724969548622,0.10126303,58947.0,58937.0,0.21204]
[1724969548812,0.3548,58953.0,58944.0,0.3608]
[1724969548813,0.45606303,58953.0,58944.0,0.3608]
[1724969549017,0.45606303,58953.0,58937.0,0.21204]
[1724969549213,0.45606303,58953.0,58942.0,0.445607]
[1724969549524,0.44906303,58953.0,58942.0,0.3608]
[1724969550221,0.45006303,58953.0,58944.0,0.007]
[1724969550423,0.45006303,58953.0,58944.0,0.091803]
[1724969550612,0.10226303,58953.0,58945.0,0.084803]
[1724969551322,0.10326303,58953.0,58945.0,0.084803]
[1724969552019,0.10226303,58953.0,58947.0,0.3608]
[1724969552321,0.10326303,58953.0,58947.0,0.3608]
[1724969552815,0.002,58953.0,58949.0,0.43]
[1724969553322,0.002,58953.0,58952.0,0.3608]
[1724969553527,0.002,58953.0,58952.0,0.86968]
[1724969553822,0.001,58953.0,58952.0,0.86968]
[1724969554024,0.002,58953.0,58952.0,0.86968]
[1724969554219,0.002,58953.0,58952.0,0.3608]
[1724969554421,0.001,58953.0,58952.0,0.3608]
[1724969554623,0.002,58953.0,58952.0,0.3608]
[1724969555623,0.002,58953.0,58952.0,0.3628]
[1724969556712,0.002,58953.0,58952.0,0.87168]
[1724969557116,0.002,58953.0,58952.0,0.956473]
[1724969557312,0.002,58953.0,58952.0,0.447593]
[1724969557717,0.002,58953.0,58952.0,0.956473]
[1724969558531,0.00025441,58954.0,58953.0,0.084792]
[1724969558824,0.3608,58980.0,58953.0,0.084792]
[1724969558825,0.06615621,58975.0,58953.0,1.29968]
[1724969559128,0.06615621,58978.0,58974.0,0.7216]
[1724969559321,0.06615621,58979.0,58975.0,0.18588]
[1724969559518,0.06615621,58979.0,58978.0,0.084756]
[1724969559713,0.06615621,58980.0,58979.0,0.084754]
[1724969559913,0.06614105,58980.0,58979.0,0.445554]
[1724969560326,0.06614105,58981.0,58979.0,0.445554]
[1724969560732,0.10151744,58984.0,58979.0,0.445554]
[1724969560733,0.06614105,58982.0,58980.0,0.084753]
[1724969561027,0.00025441,58984.0,58983.0,0.084748]
[1724969561225,0.00025441,58984.0,58983.0,0.445548]
[1724969561723,0.00025441,58984.0,58983.0,0.954148]
[1724969562114,0.00025441,58984.0,58983.0,1.554148]
[1724969562325,4.1e-07,58984.0,58983.0,1.554148]
[1724969563620,0.00700041,58984.0,58983.0,1.555148]
[1724969564321,4.1e-07,58984.0,58983.0,1.554148]
[1724969564521,0.00100041,58984.0,58983.0,1.570148]
[1724969564722,4.1e-07,58984.0,58983.0,2.00869371]
[1724969566018,0.00025441,58989.0,58988.0,0.084741]
[1724969566335,0.00025441,58989.0,58988.0,0.445541]
[1724969566524,0.00025441,58989.0,58988.0,1.554101]